[Event "Betsys MČR v online bleskovém šachu 2021"]
[Site "Chess.com"]
[Date "2021.04.17"]
[Round "3"]
[White "petr812"]
[Black "Ehlundi"]
[Result "1-0"]
[WhiteElo "2110"]
[BlackElo "1765"]
[TimeControl "180+1"]
[EndTime "9:25:01 PDT"]
[Termination "Uživatel petr812 zvítězil matem"]

1. e4 {[%clk 0:03:00.9]} 1... c5 {[%clk 0:02:59.9]} 2. b4 {[%clk 0:03:00.5]}
2... cxb4 {[%clk 0:02:59.3]} 3. a3 {[%clk 0:03:00.1]} 3... Nc6 {[%clk
0:02:56.6]} 4. d4 {[%clk 0:02:59.7]} 4... d5 {[%clk 0:02:56.3]} 5. e5 {[%clk
0:02:59.6]} 5... Bf5 {[%clk 0:02:55.5]} 6. axb4 {[%clk 0:02:57.6]} 6... Nxb4
{[%clk 0:02:53.8]} 7. Bd3 {[%clk 0:02:46.9]} 7... Bxd3 {[%clk 0:02:45.2]} 8.
cxd3 {[%clk 0:02:45.6]} 8... Nc6 {[%clk 0:02:45]} 9. Ne2 {[%clk 0:02:42.7]} 9...
e6 {[%clk 0:02:44.5]} 10. O-O {[%clk 0:02:42.1]} 10... Bb4 {[%clk 0:02:41.9]}
11. Ba3 {[%clk 0:02:41.5]} 11... Bxa3 {[%clk 0:02:38.6]} 12. Nxa3 {[%clk
0:02:41.2]} 12... Nge7 {[%clk 0:02:39.3]} 13. Nb5 {[%clk 0:02:39.9]} 13... O-O
{[%clk 0:02:37.1]} 14. Nd6 {[%clk 0:02:39.2]} 14... b6 {[%clk 0:02:30.9]} 15. g4
{[%clk 0:02:32.5]} 15... Nc8 {[%clk 0:02:28.5]} 16. Nxc8 {[%clk 0:02:26.8]}
16... Qxc8 {[%clk 0:02:27.3]} 17. f4 {[%clk 0:02:25.7]} 17... Qb7 {[%clk
0:02:24]} 18. Qe1 {[%clk 0:02:16.4]} 18... a5 {[%clk 0:02:23]} 19. Qh4 {[%clk
0:02:12.4]} 19... b5 {[%clk 0:02:22]} 20. f5 {[%clk 0:02:08.2]} 20... exf5
{[%clk 0:01:47.2]} 21. gxf5 {[%clk 0:02:07.3]} 21... f6 {[%clk 0:01:47.3]} 22.
e6 {[%clk 0:02:03.3]} 22... Qb6 {[%clk 0:01:44.6]} 23. Rf3 {[%clk 0:01:57.1]}
23... Ne7 {[%clk 0:01:26.1]} 24. Rh3 {[%clk 0:01:50]} 24... h6 {[%clk
0:01:26.3]} 25. Qg4 {[%clk 0:01:46.3]} 25... Kh8 {[%clk 0:01:21.8]} 26. Kh1
{[%clk 0:01:35.9]} 26... Nc6 {[%clk 0:01:20.1]} 27. Rg1 {[%clk 0:01:32.5]} 27...
Ra7 {[%clk 0:01:17.4]} 28. Qg6 {[%clk 0:01:09.2]} 28... Nxd4 {[%clk 0:01:10.5]}
29. Rxh6+ {[%clk 0:01:06.4]} 29... gxh6 {[%clk 0:01:10.4]} 30. Qxh6+ {[%clk
0:01:06.4]} 30... Rh7 {[%clk 0:01:10.5]} 31. Qxf8# {[%clk 0:01:06.2]} 1-0

[Event "Betsys MČR v online bleskovém šachu 2021"]
[Site "Chess.com"]
[Date "2021.04.17"]
[Round "3"]
[White "TCTCGTGCTATG"]
[Black "Klapuch05"]
[Result "1-0"]
[WhiteElo "1911"]
[BlackElo "1531"]
[TimeControl "180+1"]
[EndTime "9:25:03 PDT"]
[Termination "Uživatel TCTCGTGCTATG zvítězil po vzdání soupeře"]

1. e4 {[%clk 0:03:00.9]} 1... c5 {[%clk 0:02:58.9]} 2. Nf3 {[%clk 0:03:00.5]}
2... d6 {[%clk 0:02:59.1]} 3. d4 {[%clk 0:03:00.6]} 3... cxd4 {[%clk 0:03:00]}
4. Nxd4 {[%clk 0:03:00.2]} 4... Nf6 {[%clk 0:03:00.3]} 5. Nc3 {[%clk 0:02:59.9]}
5... g6 {[%clk 0:03:00.6]} 6. Be3 {[%clk 0:02:58.5]} 6... Bg7 {[%clk 0:02:59.7]}
7. Bc4 {[%clk 0:02:58.1]} 7... O-O {[%clk 0:02:55.4]} 8. f3 {[%clk 0:02:51.7]}
8... Nc6 {[%clk 0:02:55.1]} 9. Qd2 {[%clk 0:02:50.7]} 9... a6 {[%clk 0:02:53.7]}
10. Bb3 {[%clk 0:02:50.1]} 10... Ne5 {[%clk 0:02:49.8]} 11. O-O-O {[%clk
0:02:49.5]} 11... Bd7 {[%clk 0:02:47.6]} 12. h4 {[%clk 0:02:48.2]} 12... h5
{[%clk 0:02:46.9]} 13. Bh6 {[%clk 0:02:47.1]} 13... Rc8 {[%clk 0:02:44.4]} 14.
Bxg7 {[%clk 0:02:44.2]} 14... Kxg7 {[%clk 0:02:45.3]} 15. g4 {[%clk 0:02:42.9]}
15... Nc4 {[%clk 0:02:26.7]} 16. Bxc4 {[%clk 0:02:41.6]} 16... Rxc4 {[%clk
0:02:26.1]} 17. gxh5 {[%clk 0:02:38.5]} 17... Nxh5 {[%clk 0:02:25.8]} 18. Nf5+
{[%clk 0:02:16]} 18... Kh7 {[%clk 0:02:25.8]} 19. Qh6+ {[%clk 0:02:10.8]} 19...
Kg8 {[%clk 0:02:23.2]} 20. Rdg1 {[%clk 0:02:00.5]} 20... Qe8 {[%clk 0:01:30.7]}
21. Qxh5 {[%clk 0:01:49.4]} 21... Bxf5 {[%clk 0:01:28.1]} 22. exf5 {[%clk
0:01:47.2]} 22... Kg7 {[%clk 0:01:27.8]} 23. fxg6 {[%clk 0:01:43.5]} 23... fxg6
{[%clk 0:01:25.8]} 24. Qg5 {[%clk 0:01:42.7]} 24... Rc5 {[%clk 0:01:19.3]} 25.
Qg4 {[%clk 0:01:39.4]} 25... Qf7 {[%clk 0:01:17.4]} 26. h5 {[%clk 0:01:38.7]}
26... Qf4+ {[%clk 0:01:14.4]} 27. Qxf4 {[%clk 0:01:36.4]} 27... Rxf4 {[%clk
0:01:15.3]} 28. Rxg6+ {[%clk 0:01:34.7]} 28... Kh7 {[%clk 0:01:12.7]} 29. Rg3
{[%clk 0:01:32.3]} 29... Rcf5 {[%clk 0:01:10.9]} 30. Ne4 {[%clk 0:01:30.9]}
30... Kh6 {[%clk 0:01:03]} 31. a3 {[%clk 0:01:26.2]} 31... Rxf3 {[%clk
0:00:58.9]} 32. Rg6+ {[%clk 0:01:24.5]} 32... Kh7 {[%clk 0:00:58.5]} 33. Ng5+
{[%clk 0:01:24.2]} 33... Rxg5 {[%clk 0:00:58.4]} 34. Rxg5 {[%clk 0:01:24.4]} 1-0

[Event "Betsys MČR v online bleskovém šachu 2021"]
[Site "Chess.com"]
[Date "2021.04.17"]
[Round "3"]
[White "DavidZidlicky"]
[Black "vasekpaulus"]
[Result "0-1"]
[WhiteElo "1699"]
[BlackElo "2061"]
[TimeControl "180+1"]
[EndTime "9:25:07 PDT"]
[Termination "Uživatel vasekpaulus zvítězil po vzdání soupeře"]

1. e4 {[%clk 0:03:00.9]} 1... c5 {[%clk 0:02:59.7]} 2. Nf3 {[%clk 0:03:00.1]}
2... Nc6 {[%clk 0:02:59.7]} 3. Nc3 {[%clk 0:02:59.1]} 3... e5 {[%clk 0:02:56.5]}
4. Bc4 {[%clk 0:02:56.9]} 4... Be7 {[%clk 0:02:55.6]} 5. d3 {[%clk 0:02:56.3]}
5... d6 {[%clk 0:02:55.6]} 6. a3 {[%clk 0:02:55.8]} 6... Nf6 {[%clk 0:02:55.8]}
7. Bg5 {[%clk 0:02:53.7]} 7... O-O {[%clk 0:02:55.9]} 8. h4 {[%clk 0:02:51.6]}
8... Be6 {[%clk 0:02:50.2]} 9. Bxf6 {[%clk 0:02:39.6]} 9... Bxf6 {[%clk
0:02:49.2]} 10. Nd5 {[%clk 0:02:38.8]} 10... Bxd5 {[%clk 0:02:37.8]} 11. Bxd5
{[%clk 0:02:37.6]} 11... Ne7 {[%clk 0:02:35.9]} 12. Ba2 {[%clk 0:02:34.4]} 12...
d5 {[%clk 0:02:27.8]} 13. Qe2 {[%clk 0:02:20.3]} 13... d4 {[%clk 0:02:23.7]} 14.
g4 {[%clk 0:02:16.8]} 14... Nc6 {[%clk 0:02:18.1]} 15. g5 {[%clk 0:02:09.7]}
15... Be7 {[%clk 0:02:18]} 16. Nh2 {[%clk 0:02:02]} 16... Qa5+ {[%clk
0:02:10.4]} 17. Kf1 {[%clk 0:01:54.7]} 17... Kh8 {[%clk 0:02:00.4]} 18. Ng4
{[%clk 0:01:53.9]} 18... f5 {[%clk 0:01:51.7]} 19. exf5 {[%clk 0:01:47.3]} 19...
Rxf5 {[%clk 0:01:50.4]} 20. Be6 {[%clk 0:01:30.7]} 20... Rf4 {[%clk 0:01:35.4]}
21. Kg2 {[%clk 0:01:28.4]} 21... Raf8 {[%clk 0:01:31.7]} 22. Raf1 {[%clk
0:01:18.2]} 22... Qc7 {[%clk 0:01:29.1]} 23. Bd5 {[%clk 0:01:11.5]} 23... Qd7
{[%clk 0:01:23.3]} 24. f3 {[%clk 0:01:07.6]} 24... Qxd5 {[%clk 0:01:21.5]} 25.
g6 {[%clk 0:00:47.5]} 25... Rxg4+ {[%clk 0:01:18.8]} 0-1

[Event "Betsys MČR v online bleskovém šachu 2021"]
[Site "Chess.com"]
[Date "2021.04.17"]
[Round "3"]
[White "Skalicky"]
[Black "RunningPawnz88"]
[Result "0-1"]
[WhiteElo "767"]
[BlackElo "1343"]
[TimeControl "180+1"]
[EndTime "9:25:12 PDT"]
[Termination "Uživatel RunningPawnz88 zvítězil matem"]

1. d4 {[%clk 0:02:59.6]} 1... Nf6 {[%clk 0:02:58.6]} 2. c4 {[%clk 0:02:58.8]}
2... c5 {[%clk 0:02:57.1]} 3. d5 {[%clk 0:02:58.3]} 3... d6 {[%clk 0:02:56.4]}
4. Nc3 {[%clk 0:02:56.5]} 4... e5 {[%clk 0:02:56.4]} 5. e4 {[%clk 0:02:47.1]}
5... g6 {[%clk 0:02:52.6]} 6. Nf3 {[%clk 0:02:45.7]} 6... Bg7 {[%clk 0:02:52.4]}
7. Be2 {[%clk 0:02:41.5]} 7... O-O {[%clk 0:02:51.7]} 8. O-O {[%clk 0:02:40.2]}
8... Bg4 {[%clk 0:02:51.4]} 9. h3 {[%clk 0:02:32.5]} 9... Bd7 {[%clk 0:02:48.2]}
10. Bg5 {[%clk 0:02:27.8]} 10... Na6 {[%clk 0:02:42.5]} 11. a3 {[%clk
0:02:25.6]} 11... Qb6 {[%clk 0:02:34.9]} 12. Qc2 {[%clk 0:02:21.9]} 12... h6
{[%clk 0:02:27.3]} 13. Bxf6 {[%clk 0:02:13.8]} 13... Bxf6 {[%clk 0:02:27.2]} 14.
Rfd1 {[%clk 0:02:11.1]} 14... Nc7 {[%clk 0:02:21.8]} 15. Rac1 {[%clk 0:01:58.3]}
15... Ne8 {[%clk 0:02:18.8]} 16. Ne1 {[%clk 0:01:45.7]} 16... Ng7 {[%clk
0:02:17.9]} 17. Nd3 {[%clk 0:01:36.9]} 17... Bg5 {[%clk 0:02:15.9]} 18. Rb1
{[%clk 0:01:31.3]} 18... f5 {[%clk 0:02:15.3]} 19. exf5 {[%clk 0:01:28.7]} 19...
Nxf5 {[%clk 0:02:13.7]} 20. Na4 {[%clk 0:01:06.2]} 20... Qd8 {[%clk 0:02:11.2]}
21. b4 {[%clk 0:00:59.5]} 21... Nd4 {[%clk 0:02:09.9]} 22. Qb2 {[%clk
0:00:52.2]} 22... Bxa4 {[%clk 0:02:08.8]} 23. bxc5 {[%clk 0:00:48.8]} 23... dxc5
{[%clk 0:01:59.9]} 24. Qxb7 {[%clk 0:00:43.7]} 24... Nxe2+ {[%clk 0:01:56.8]}
25. Kf1 {[%clk 0:00:41.4]} 25... Bxd1 {[%clk 0:01:56.6]} 26. Rxd1 {[%clk
0:00:39.1]} 26... Nc3 {[%clk 0:01:53.5]} 27. Re1 {[%clk 0:00:27]} 27... e4
{[%clk 0:01:50.5]} 28. Ne5 {[%clk 0:00:25.6]} 28... Qf6 {[%clk 0:01:39.6]} 29.
Nd7 {[%clk 0:00:22.1]} 29... Qxf2# {[%clk 0:01:38.4]} 0-1

[Event "Betsys MČR v online bleskovém šachu 2021"]
[Site "Chess.com"]
[Date "2021.04.17"]
[Round "3"]
[White "mendryxchess"]
[Black "kalcs"]
[Result "1-0"]
[WhiteElo "1755"]
[BlackElo "2074"]
[TimeControl "180+1"]
[EndTime "9:25:22 PDT"]
[Termination "Uživatel mendryxchess zvítězil po vzdání soupeře"]

1. e4 {[%clk 0:03:00.9]} 1... e5 {[%clk 0:02:59.3]} 2. Nf3 {[%clk 0:03:00.9]}
2... Nc6 {[%clk 0:02:59.3]} 3. Bc4 {[%clk 0:03:00.6]} 3... Bc5 {[%clk
0:02:59.2]} 4. O-O {[%clk 0:03:00.2]} 4... Nf6 {[%clk 0:02:57.7]} 5. d4 {[%clk
0:03:00.1]} 5... exd4 {[%clk 0:02:54.2]} 6. e5 {[%clk 0:03:00]} 6... d5 {[%clk
0:02:54.3]} 7. exf6 {[%clk 0:02:58.5]} 7... dxc4 {[%clk 0:02:54.4]} 8. Re1+
{[%clk 0:02:59.1]} 8... Be6 {[%clk 0:02:54.1]} 9. Ng5 {[%clk 0:02:59.1]} 9...
Qd5 {[%clk 0:02:52.6]} 10. Nc3 {[%clk 0:02:57.4]} 10... Qf5 {[%clk 0:02:52.4]}
11. Nce4 {[%clk 0:02:57.6]} 11... Bb6 {[%clk 0:02:43.2]} 12. g4 {[%clk
0:02:39.9]} 12... Qg6 {[%clk 0:02:18.5]} 13. Qf3 {[%clk 0:02:11.8]} 13... O-O-O
{[%clk 0:02:13.8]} 14. h4 {[%clk 0:02:02.9]} 14... h5 {[%clk 0:02:12.4]} 15.
Nxe6 {[%clk 0:01:47.2]} 15... fxe6 {[%clk 0:02:11.5]} 16. g5 {[%clk 0:01:47.2]}
16... Ne5 {[%clk 0:01:59.7]} 17. Qh3 {[%clk 0:01:36.9]} 17... Ng4 {[%clk
0:01:58.3]} 18. Bd2 {[%clk 0:01:20.5]} 18... d3 {[%clk 0:01:57.4]} 19. cxd3
{[%clk 0:01:19]} 19... Bxf2+ {[%clk 0:01:55.7]} 20. Nxf2 {[%clk 0:01:14.9]}
20... Nxf2 {[%clk 0:01:55.2]} 21. Kxf2 {[%clk 0:01:15]} 21... Rxd3 {[%clk
0:01:54.4]} 22. Qxe6+ {[%clk 0:01:15.1]} 22... Kb8 {[%clk 0:01:47.5]} 23. Bc3
{[%clk 0:01:03.4]} 23... Rhd8 {[%clk 0:01:16.3]} 24. f7 {[%clk 0:00:52.5]} 1-0

[Event "Betsys MČR v online bleskovém šachu 2021"]
[Site "Chess.com"]
[Date "2021.04.17"]
[Round "3"]
[White "Smetanka674"]
[Black "viklan"]
[Result "1-0"]
[WhiteElo "1760"]
[BlackElo "1569"]
[TimeControl "180+1"]
[EndTime "9:25:22 PDT"]
[Termination "Uživatel Smetanka674 zvítězil po vzdání soupeře"]

1. d4 {[%clk 0:03:00.9]} 1... d5 {[%clk 0:02:59.3]} 2. c4 {[%clk 0:02:59.9]}
2... e6 {[%clk 0:02:57.3]} 3. Nc3 {[%clk 0:02:59]} 3... Nf6 {[%clk 0:02:56.6]}
4. Nf3 {[%clk 0:02:58.7]} 4... c6 {[%clk 0:02:56.2]} 5. Bg5 {[%clk 0:02:57]}
5... Nbd7 {[%clk 0:02:55.5]} 6. e3 {[%clk 0:02:57.1]} 6... Qa5 {[%clk
0:02:53.3]} 7. Bxf6 {[%clk 0:02:55.2]} 7... Nxf6 {[%clk 0:02:53.2]} 8. Bd3
{[%clk 0:02:54.3]} 8... Bb4 {[%clk 0:02:49.8]} 9. Qc2 {[%clk 0:02:51.9]} 9...
dxc4 {[%clk 0:02:46.4]} 10. Bxc4 {[%clk 0:02:51.2]} 10... Ne4 {[%clk 0:02:45.8]}
11. Rc1 {[%clk 0:02:45]} 11... Nxc3 {[%clk 0:02:21.5]} 12. bxc3 {[%clk
0:02:41.4]} 12... Be7 {[%clk 0:02:21.3]} 13. O-O {[%clk 0:02:39.6]} 13... O-O
{[%clk 0:02:20.1]} 14. Bd3 {[%clk 0:02:34.8]} 14... h6 {[%clk 0:02:18.1]} 15.
Bh7+ {[%clk 0:02:32.9]} 15... Kh8 {[%clk 0:02:17.4]} 16. Bd3 {[%clk 0:02:33.8]}
16... Bf6 {[%clk 0:02:16.8]} 17. Rb1 {[%clk 0:02:30.1]} 17... b6 {[%clk
0:02:11.6]} 18. c4 {[%clk 0:02:30.1]} 18... Ba6 {[%clk 0:02:05.5]} 19. h3 {[%clk
0:02:26.4]} 19... c5 {[%clk 0:02:05]} 20. d5 {[%clk 0:02:21.3]} 20... exd5
{[%clk 0:02:03.3]} 21. cxd5 {[%clk 0:02:20.8]} 21... Rfd8 {[%clk 0:01:35.4]} 22.
Bxa6 {[%clk 0:02:16.6]} 22... Qxa6 {[%clk 0:01:35]} 23. e4 {[%clk 0:02:16.8]}
23... Re8 {[%clk 0:01:20.5]} 24. Rfe1 {[%clk 0:02:15.2]} 24... Be5 {[%clk
0:01:18.6]} 25. Nxe5 {[%clk 0:02:13.3]} 25... Rxe5 {[%clk 0:01:18]} 26. f4
{[%clk 0:02:13.4]} 26... Ree8 {[%clk 0:01:17.8]} 27. e5 {[%clk 0:02:12.7]} 27...
Rad8 {[%clk 0:01:14.8]} 28. d6 {[%clk 0:02:10.8]} 28... Qb7 {[%clk 0:01:13.8]}
29. Rbd1 {[%clk 0:02:08.9]} 29... Rd7 {[%clk 0:01:08.4]} 30. f5 {[%clk
0:02:02.2]} 30... Red8 {[%clk 0:00:59.1]} 31. e6 {[%clk 0:01:42.8]} 31... fxe6
{[%clk 0:00:56.3]} 32. fxe6 {[%clk 0:01:42.3]} 32... Rxd6 {[%clk 0:00:49.2]} 33.
Rxd6 {[%clk 0:01:41]} 33... Rxd6 {[%clk 0:00:46.7]} 34. e7 {[%clk 0:01:41.1]}
34... Qd7 {[%clk 0:00:26.2]} 35. e8=Q+ {[%clk 0:01:39.7]} 1-0

[Event "Betsys MČR v online bleskovém šachu 2021"]
[Site "Chess.com"]
[Date "2021.04.17"]
[Round "3"]
[White "jhdghaka"]
[Black "Dale00007"]
[Result "1-0"]
[WhiteElo "1873"]
[BlackElo "1401"]
[TimeControl "180+1"]
[EndTime "9:25:29 PDT"]
[Termination "Uživatel jhdghaka zvítězil matem"]

1. e4 {[%clk 0:03:00.9]} 1... c5 {[%clk 0:02:58.2]} 2. Nf3 {[%clk 0:02:55]} 2...
d6 {[%clk 0:02:57.3]} 3. Bb5+ {[%clk 0:02:55.4]} 3... Bd7 {[%clk 0:02:53.1]} 4.
Bxd7+ {[%clk 0:02:55.8]} 4... Nxd7 {[%clk 0:02:52.8]} 5. O-O {[%clk 0:02:56.7]}
5... Ngf6 {[%clk 0:02:52.2]} 6. Re1 {[%clk 0:02:57.6]} 6... e6 {[%clk
0:02:49.9]} 7. c3 {[%clk 0:02:57.6]} 7... Be7 {[%clk 0:02:49.1]} 8. d4 {[%clk
0:02:57.8]} 8... cxd4 {[%clk 0:02:49.2]} 9. cxd4 {[%clk 0:02:58.7]} 9... O-O
{[%clk 0:02:48.3]} 10. Nc3 {[%clk 0:02:57.8]} 10... a6 {[%clk 0:02:39.6]} 11. a4
{[%clk 0:02:56.7]} 11... Qc7 {[%clk 0:02:29.7]} 12. Bf4 {[%clk 0:02:54.5]} 12...
e5 {[%clk 0:02:18.8]} 13. Bg3 {[%clk 0:02:43.7]} 13... Rfd8 {[%clk 0:01:51.6]}
14. Rc1 {[%clk 0:02:41.6]} 14... Qa5 {[%clk 0:01:43.6]} 15. Qb3 {[%clk
0:02:37.4]} 15... Rab8 {[%clk 0:01:34.7]} 16. Nd5 {[%clk 0:01:50]} 16... Nxd5
{[%clk 0:01:29.7]} 17. exd5 {[%clk 0:01:50.9]} 17... f6 {[%clk 0:01:13.4]} 18.
dxe5 {[%clk 0:01:49.6]} 18... fxe5 {[%clk 0:01:07.1]} 19. Nxe5 {[%clk
0:01:34.5]} 19... Nxe5 {[%clk 0:01:00.5]} 20. Bxe5 {[%clk 0:01:34.1]} 20... Bg5
{[%clk 0:00:28.7]} 21. Bc3 {[%clk 0:01:31.7]} 21... Qb6 {[%clk 0:00:24]} 22.
Qxb6 {[%clk 0:01:29.8]} 22... Bxc1 {[%clk 0:00:18.9]} 23. Rxc1 {[%clk
0:01:30.3]} 23... Rbc8 {[%clk 0:00:17.4]} 24. Qxb7 {[%clk 0:01:28.3]} 24... Re8
{[%clk 0:00:13.9]} 25. Qxg7# {[%clk 0:01:27.4]} 1-0

[Event "Betsys MČR v online bleskovém šachu 2021"]
[Site "Chess.com"]
[Date "2021.04.17"]
[Round "3"]
[White "MatyldaCZ"]
[Black "ReceptiveYoyo"]
[Result "0-1"]
[WhiteElo "1389"]
[BlackElo "1324"]
[TimeControl "180+1"]
[EndTime "9:25:29 PDT"]
[Termination "Uživatel ReceptiveYoyo zvítězil po vzdání soupeře"]

1. e4 {[%clk 0:03:00.9]} 1... c5 {[%clk 0:02:58.8]} 2. Nf3 {[%clk 0:03:01.2]}
2... d6 {[%clk 0:02:58.4]} 3. d4 {[%clk 0:03:01.3]} 3... cxd4 {[%clk 0:02:59.3]}
4. Nxd4 {[%clk 0:03:01.4]} 4... Nc6 {[%clk 0:03:00]} 5. Bb5 {[%clk 0:03:00.2]}
5... Bd7 {[%clk 0:02:52.7]} 6. Nc3 {[%clk 0:02:58.9]} 6... g6 {[%clk 0:02:50.7]}
7. Be3 {[%clk 0:02:55.7]} 7... Bg7 {[%clk 0:02:50]} 8. O-O {[%clk 0:02:53.2]}
8... Nf6 {[%clk 0:02:49.6]} 9. Bxc6 {[%clk 0:02:49.5]} 9... Bxc6 {[%clk
0:02:49.1]} 10. Nxc6 {[%clk 0:02:47.8]} 10... bxc6 {[%clk 0:02:49.2]} 11. Re1
{[%clk 0:02:47.1]} 11... O-O {[%clk 0:02:47]} 12. Bg5 {[%clk 0:02:46.2]} 12...
h6 {[%clk 0:02:44.3]} 13. Bf4 {[%clk 0:02:43]} 13... e5 {[%clk 0:02:41.8]} 14.
Bd2 {[%clk 0:02:28.9]} 14... d5 {[%clk 0:02:34.8]} 15. exd5 {[%clk 0:02:26.3]}
15... Nxd5 {[%clk 0:02:33.4]} 16. Nxd5 {[%clk 0:02:24.3]} 16... cxd5 {[%clk
0:02:29.6]} 17. Bc3 {[%clk 0:02:22.7]} 17... d4 {[%clk 0:02:26.8]} 18. Bb4
{[%clk 0:02:22.3]} 18... Re8 {[%clk 0:02:25.7]} 19. Qd3 {[%clk 0:02:19]} 19...
Qb6 {[%clk 0:02:17.4]} 20. Ba3 {[%clk 0:02:09.5]} 20... Rac8 {[%clk 0:02:13.2]}
21. b3 {[%clk 0:02:07.4]} 21... Qc6 {[%clk 0:02:08]} 22. Rac1 {[%clk 0:02:06]}
22... e4 {[%clk 0:02:03.4]} 23. Qd1 {[%clk 0:01:54.9]} 23... Rcd8 {[%clk
0:01:46.3]} 24. Bb2 {[%clk 0:01:54]} 24... Qb6 {[%clk 0:01:42.9]} 25. Qg4 {[%clk
0:01:46.5]} 25... e3 {[%clk 0:01:39.2]} 26. fxe3 {[%clk 0:01:42.4]} 26... Rxe3
{[%clk 0:01:37.5]} 27. Rxe3 {[%clk 0:01:42.1]} 27... dxe3 {[%clk 0:01:36.7]} 28.
Bxg7 {[%clk 0:01:40.1]} 28... Kxg7 {[%clk 0:01:18.5]} 29. Qe2 {[%clk 0:01:40.2]}
29... Rd2 {[%clk 0:01:15.7]} 30. Qe1 {[%clk 0:01:36.9]} 30... e2+ {[%clk
0:01:12.7]} 31. Kh1 {[%clk 0:01:37.3]} 31... Qe3 {[%clk 0:00:54.7]} 32. c4
{[%clk 0:01:30.4]} 32... Qd3 {[%clk 0:00:51.7]} 33. c5 {[%clk 0:01:26.1]} 33...
Rd1 {[%clk 0:00:51.7]} 0-1

[Event "Betsys MČR v online bleskovém šachu 2021"]
[Site "Chess.com"]
[Date "2021.04.17"]
[Round "3"]
[White "DrDANDog"]
[Black "Nimrod64"]
[Result "0-1"]
[WhiteElo "1787"]
[BlackElo "2274"]
[TimeControl "180+1"]
[EndTime "9:25:31 PDT"]
[Termination "Uživatel Nimrod64 zvítězil matem"]

1. e4 {[%clk 0:03:00.9]} 1... d5 {[%clk 0:02:59.3]} 2. exd5 {[%clk 0:03:00.8]}
2... Qxd5 {[%clk 0:02:58.9]} 3. d4 {[%clk 0:03:01.5]} 3... Nf6 {[%clk
0:02:57.4]} 4. Nc3 {[%clk 0:03:01.7]} 4... Qd6 {[%clk 0:02:55.3]} 5. Nf3 {[%clk
0:03:01.7]} 5... c6 {[%clk 0:02:54.1]} 6. g3 {[%clk 0:03:01.3]} 6... Bf5 {[%clk
0:02:52.3]} 7. Bf4 {[%clk 0:02:59.7]} 7... Qd8 {[%clk 0:02:51.6]} 8. Bg2 {[%clk
0:02:59.8]} 8... e6 {[%clk 0:02:51.3]} 9. O-O {[%clk 0:02:59.3]} 9... h6 {[%clk
0:02:50.6]} 10. Ne5 {[%clk 0:02:57.7]} 10... Be7 {[%clk 0:02:48.4]} 11. Re1
{[%clk 0:02:46.6]} 11... O-O {[%clk 0:02:47]} 12. Qd2 {[%clk 0:02:46.9]} 12...
Nbd7 {[%clk 0:02:44.8]} 13. Bxh6 {[%clk 0:02:45.8]} 13... gxh6 {[%clk
0:02:38.5]} 14. Qxh6 {[%clk 0:02:46.7]} 14... Nxe5 {[%clk 0:02:37.2]} 15. dxe5
{[%clk 0:02:47.6]} 15... Nh7 {[%clk 0:02:35.5]} 16. Ne4 {[%clk 0:02:41.5]} 16...
Kh8 {[%clk 0:02:31.2]} 17. Nf6 {[%clk 0:02:37.3]} 17... Bxf6 {[%clk 0:02:29.6]}
18. exf6 {[%clk 0:02:38.2]} 18... Qxf6 {[%clk 0:02:29.2]} 19. Qd2 {[%clk
0:02:28.2]} 19... Rfd8 {[%clk 0:02:23.1]} 20. Qb4 {[%clk 0:02:28]} 20... Rd7
{[%clk 0:02:21.4]} 21. c3 {[%clk 0:02:28.3]} 21... Rad8 {[%clk 0:02:19.2]} 22.
g4 {[%clk 0:02:20.5]} 22... Bg6 {[%clk 0:02:14.9]} 23. f4 {[%clk 0:02:16.6]}
23... a5 {[%clk 0:02:02.4]} 24. Qa4 {[%clk 0:02:04.6]} 24... b5 {[%clk
0:01:50.3]} 25. Qxa5 {[%clk 0:01:52.6]} 25... Qxf4 {[%clk 0:01:48.8]} 26. Rf1
{[%clk 0:01:31.1]} 26... Qe3+ {[%clk 0:01:45.9]} 27. Kh1 {[%clk 0:01:30.9]}
27... Rd2 {[%clk 0:01:39.6]} 28. Rae1 {[%clk 0:01:26.8]} 28... Qc5 {[%clk
0:01:35.1]} 29. Qc7 {[%clk 0:01:11.2]} 29... Qd6 {[%clk 0:01:25.5]} 30. Qxc6
{[%clk 0:01:08.3]} 30... Qxc6 {[%clk 0:01:23.3]} 31. Bxc6 {[%clk 0:01:09.2]}
31... Rxb2 {[%clk 0:01:21.8]} 32. a4 {[%clk 0:01:07.3]} 32... bxa4 {[%clk
0:01:18.9]} 33. Bxa4 {[%clk 0:01:08.2]} 33... Rdd2 {[%clk 0:01:17.3]} 34. Bc6
{[%clk 0:00:53.9]} 34... Rxh2+ {[%clk 0:01:14.8]} 35. Kg1 {[%clk 0:00:54.4]}
35... Ng5 {[%clk 0:01:08.9]} 36. Rd1 {[%clk 0:00:54.1]} 36... Nh3# {[%clk
0:01:06]} 0-1

[Event "Betsys MČR v online bleskovém šachu 2021"]
[Site "Chess.com"]
[Date "2021.04.17"]
[Round "3"]
[White "Emicka1330"]
[Black "jonasstach"]
[Result "0-1"]
[WhiteElo "1645"]
[BlackElo "2007"]
[TimeControl "180+1"]
[EndTime "9:25:31 PDT"]
[Termination "Uživatel jonasstach zvítězil po vzdání soupeře"]

1. e4 {[%clk 0:03:00.9]} 1... e6 {[%clk 0:03:00.4]} 2. d4 {[%clk 0:03:00.3]}
2... d5 {[%clk 0:03:01]} 3. exd5 {[%clk 0:02:59.1]} 3... exd5 {[%clk 0:03:01.9]}
4. Bd3 {[%clk 0:02:59.3]} 4... Nf6 {[%clk 0:03:01.7]} 5. Nf3 {[%clk 0:02:58.8]}
5... Bd6 {[%clk 0:03:02.1]} 6. O-O {[%clk 0:02:58.5]} 6... O-O {[%clk
0:03:00.5]} 7. c3 {[%clk 0:02:58.5]} 7... Bg4 {[%clk 0:03:00.3]} 8. Nbd2 {[%clk
0:02:55.7]} 8... Nbd7 {[%clk 0:02:56.9]} 9. Qc2 {[%clk 0:02:54.5]} 9... c6
{[%clk 0:02:53.2]} 10. h3 {[%clk 0:02:51.9]} 10... Bh5 {[%clk 0:02:53.2]} 11.
Re1 {[%clk 0:02:47.4]} 11... Re8 {[%clk 0:02:50.7]} 12. Qd1 {[%clk 0:02:42]}
12... Qc7 {[%clk 0:02:49]} 13. b4 {[%clk 0:02:41.1]} 13... a5 {[%clk 0:02:45.9]}
14. bxa5 {[%clk 0:02:36.6]} 14... Qxa5 {[%clk 0:02:41.1]} 15. Bb2 {[%clk
0:02:35]} 15... Qb6 {[%clk 0:02:33.6]} 16. Qc2 {[%clk 0:02:26]} 16... Rxe1+
{[%clk 0:02:25]} 17. Nxe1 {[%clk 0:02:21.1]} 17... c5 {[%clk 0:02:17.3]} 18.
Nef3 {[%clk 0:02:18]} 18... c4 {[%clk 0:02:02.3]} 19. Bf5 {[%clk 0:02:16.5]}
19... Bg6 {[%clk 0:02:02.1]} 20. Bxg6 {[%clk 0:02:12.7]} 20... hxg6 {[%clk
0:02:03]} 21. a4 {[%clk 0:02:05.7]} 21... Bf4 {[%clk 0:02:00.4]} 22. Re1 {[%clk
0:02:02.9]} 22... Qc6 {[%clk 0:01:49.4]} 23. Ne5 {[%clk 0:01:54.7]} 23... Qxa4
{[%clk 0:01:41.9]} 24. Qb1 {[%clk 0:01:42.9]} 24... Bxd2 {[%clk 0:01:31.4]} 25.
Re2 {[%clk 0:01:41]} 25... Bf4 {[%clk 0:01:24.6]} 26. g3 {[%clk 0:01:38.6]}
26... Bxe5 {[%clk 0:01:19.3]} 27. dxe5 {[%clk 0:01:37.8]} 27... Ne4 {[%clk
0:01:19.8]} 28. Qc1 {[%clk 0:01:23.6]} 28... Re8 {[%clk 0:00:56.6]} 29. Qf4
{[%clk 0:01:13.3]} 29... Qd1+ {[%clk 0:00:52.5]} 30. Kh2 {[%clk 0:01:09.3]}
30... Qxe2 {[%clk 0:00:50.5]} 31. Bc1 {[%clk 0:01:06.5]} 31... Qxf2+ {[%clk
0:00:50.1]} 32. Qxf2 {[%clk 0:01:05.4]} 32... Nxf2 {[%clk 0:00:49.7]} 0-1